bitfinex/quotes_ETHUSD_20251107
["timestamp","ask_amount","ask_price","bid_price","bid_amount"]
[1762529546179,0.02437881,3307.7,3306.7,0.405504]
[1762529546380,0.4596,3307.6,3306.1,0.00100001]
[1762529546610,3.02378046,3307.2,3306.1,0.00100001]
[1762529546826,4.48383241,3306.2,3306.1,0.00100001]
[1762529547325,4.96781122,3306.2,3306.1,0.00100001]
[1762529547780,5.44334264,3306.2,3306.1,0.00100001]
[1762529547980,4.96781122,3306.2,3306.1,0.00100001]
[1762529548181,5.74266542,3306.2,3306.1,0.00100001]
[1762529548391,5.28306542,3306.2,3306.1,0.00100001]
[1762529548614,5.74266542,3306.2,3306.1,0.00100001]
[1762529548833,5.76704423,3306.2,3306.1,0.00100001]
[1762529549119,3.02402817,3306.9,3306.1,0.00100001]
[1762529549317,0.42834925,3307.1,3306.1,0.00100001]
[1762529549615,1.259712,3306.9,3306.1,0.00100001]
[1762529549780,3.02450322,3306.4,3306.1,0.00100001]
[1762529549981,3.04890795,3306.3,3306.1,0.00100001]
[1762529550204,4.30871122,3306.2,3306.1,0.00100001]
[1762529550405,0.1995,3306.7,3306.1,0.00100001]
[1762529550592,0.02437881,3306.8,3306.1,0.00100001]
[1762529550793,3.02423744,3306.7,3306.1,0.40650401]
[1762529550994,0.4596,3307.3,3306.1,0.40650401]
[1762529551190,0.02437881,3307.2,3306.1,0.00100001]
[1762529551485,3.02462041,3306.2,3306.1,0.40650401]
[1762529551710,3.02462041,3306.2,3306.1,0.00100001]
[1762529552284,4.28433241,3306.2,3306.1,0.00100001]
[1762529552803,4.43553241,3306.2,3306.1,0.00100001]
[1762529553005,0.1512,3306.2,3306.1,0.00100001]
[1762529553232,3.17582041,3306.2,3306.1,0.00100001]
[1762529553411,5.85974319,3306.2,3306.1,0.00100001]
[1762529553586,1.90674455,3306.2,3306.1,0.00100001]
[1762529553785,1.259712,3306.2,3306.1,0.00100001]
[1762529554123,3.02462041,3306.2,3306.1,0.00100001]
[1762529554297,3.69676112,3306.2,3306.1,0.00100001]
[1762529554497,5.39169431,3306.2,3306.1,0.00100001]
[1762529554700,0.03965099,3305.3,3305.1,0.005]
[1762529554999,0.03965099,3305.3,3305.1,0.410504]
[1762529555357,0.03965099,3305.3,3305.1,0.005]
[1762529555358,3.02553551,3305.2,3305.1,0.005]
[1762529555494,4.30962632,3305.2,3305.1,0.005]
[1762529555692,6.19438755,3305.2,3305.1,0.005]
[1762529555923,5.71630874,3305.2,3305.1,0.005]
[1762529556123,5.73988755,3305.2,3305.1,0.005]
[1762529556331,6.19358755,3305.2,3305.1,0.005]
[1762529556502,5.71550874,3305.2,3305.1,0.005]
[1762529556828,0.64821993,3305.2,3305.1,0.005]
[1762529557130,3.67462919,3305.2,3305.1,0.005]
[1762529557427,4.93434119,3305.2,3305.1,0.005]
[1762529557633,4.95872,3305.2,3305.1,0.005]
[1762529557927,3.699008,3305.2,3305.1,0.005]
[1762529558127,4.82912087,3305.2,3305.1,0.005]
[1762529558421,6.06445406,3305.2,3305.1,0.005]
[1762529558627,0.64909368,3305.2,3305.1,0.005]
[1762529559012,3.67462919,3305.2,3305.1,0.005]
[1762529559442,4.93434119,3305.2,3305.1,0.005]
[1762529559732,3.02645118,3304.2,3304.1,0.005]
[1762529560629,1.259712,3305.2,3304.4,0.001]
[1762529560838,5.94136119,3305.3,3304.4,0.001]
[1762529560839,3.02617642,3304.5,3304.4,0.001]
[1762529561317,1.6212424,3305.5,3304.4,0.4995]
[1762529561631,1.6212424,3305.5,3304.5,0.405504]
[1762529561632,3.02577739,3305.0,3304.5,0.405504]
[1762529561790,3.02590171,3304.8,3304.4,0.001]
[1762529561990,1.259712,3305.3,3304.4,0.406504]
[1762529562239,0.64927911,3305.2,3304.4,0.406504]
[1762529562535,3.02605871,3304.7,3304.4,0.001]
[1762529562741,0.02437881,3305.0,3304.4,0.001]
[1762529562936,3.0260448,3304.7,3304.4,0.001]
[1762529563391,3.02617642,3304.5,3304.4,0.001]
[1762529563535,4.39337969,3304.5,3304.4,0.001]
[1762529563846,5.6774705,3304.5,3304.4,0.001]
[1762529564049,5.65309169,3304.5,3304.4,0.001]
[1762529564672,1.715112,3304.8,3303.6,0.3731181]
[1762529564994,0.64881289,3304.7,3303.6,3.89860545]
[1762529565160,3.02608485,3304.6,3303.8,3.0267372]
[1762529565354,1.259712,3304.8,3303.6,0.8716181]
[1762529565557,3.0263667,3304.3,3303.6,0.8716181]
[1762529565759,4.28567617,3304.8,3303.6,0.8716181]
[1762529565986,3.0264295,3304.3,3303.7,3.02688931]
[1762529566185,3.0261845,3304.5,3303.6,0.8716181]
[1762529566419,1.14034487,3304.7,3303.6,0.8716181]
[1762529566720,3.02636357,3304.3,3303.6,0.8716181]
[1762529566930,1.14034487,3304.7,3303.6,0.8716181]
[1762529567084,0.64843262,3304.7,3303.7,0.904004]
[1762529567270,0.64843262,3304.9,3303.9,0.405504]
[1762529567476,0.67281143,3305.7,3303.9,0.405504]
[1762529567684,0.67281143,3305.6,3304.3,0.405504]
[1762529567883,1.259712,3305.4,3303.5,0.4985]
[1762529568106,3.0257186,3305.0,3303.6,0.405504]
[1762529568419,3.02648572,3304.2,3303.3,0.153]
[1762529568573,1.259712,3304.7,3303.3,0.153]
[1762529568772,1.259712,3304.4,3303.1,0.005]
[1762529568973,0.67292646,3304.3,3303.1,0.005]
[1762529569201,3.02706797,3303.6,3303.1,0.005]
[1762529569405,3.02693944,3303.7,3303.1,3.03245794]
[1762529569811,0.19326385,3304.2,3303.2,0.4985]
[1762529570029,2.38851599,3304.1,3303.1,0.005]
[1762529570306,3.02724778,3303.4,3303.1,0.005]
[1762529570506,3.02672599,3303.9,3303.1,0.005]
[1762529570811,0.64877764,3303.8,3303.1,0.005]
[1762529571013,3.02709259,3303.5,3303.1,0.005]
[1762529571219,3.02613855,3304.6,3303.1,0.005]
[1762529571220,1.259712,3304.3,3303.1,0.005]
[1762529571426,3.0273674,3303.2,3303.1,0.005]
[1762529571580,1.259712,3304.0,3303.1,0.005]
[1762529571781,1.07714349,3303.9,3303.1,0.005]
[1762529572005,0.64851244,3303.9,3303.2,0.405504]
[1762529572218,1.440212,3304.5,3303.2,0.405504]
[1762529572219,3.02684565,3303.8,3303.2,0.405504]
[1762529572426,0.02437881,3303.7,3303.1,0.005]
[1762529572589,0.64837716,3303.9,3303.1,0.005]
[1762529572987,3.02700594,3303.6,3303.1,0.005]
[1762529573490,0.4554,3304.0,3303.1,0.410504]
[1762529573690,3.0273674,3303.2,3303.1,0.410504]
[1762529573895,3.02731579,3303.3,3303.1,0.005]
[1762529574136,1.259712,3303.9,3303.1,0.005]
[1762529574332,0.1805,3304.5,3303.1,0.005]
[1762529574511,0.6480775,3304.4,3303.3,0.405504]
[1762529574680,0.1805,3304.5,3303.3,0.405504]
[1762529574681,3.17782992,3304.1,3303.6,0.405504]
[1762529574887,0.1512,3304.1,3303.6,0.405504]
[1762529575235,0.1512,3304.1,3303.2,0.405504]
[1762529575236,3.0268236,3303.8,3303.2,0.405504]
[1762529575407,0.4554,3304.1,3303.2,0.405504]
[1762529575609,1.259712,3304.6,3303.4,3.43265711]
[1762529575610,3.02664717,3304.0,3303.4,3.43265711]
[1762529575815,3.02654639,3304.1,3303.5,3.02709247]
[1762529575997,3.02654616,3304.1,3303.6,0.405504]
[1762529576206,0.4554,3304.6,3303.6,0.405504]
[1762529576207,1.715112,3304.6,3303.6,0.405504]
[1762529576528,3.02674283,3303.9,3303.5,0.405504]
[1762529576816,3.02700084,3303.6,3303.5,0.405504]
[1762529577017,3.02699321,3303.7,3303.1,3.03239162]
[1762529577218,3.02717764,3303.5,3303.1,0.005]
[1762529577521,3.02698367,3303.7,3303.1,0.005]
[1762529577522,3.02691644,3303.7,3303.1,3.43790643]
[1762529577721,3.02718706,3303.4,3303.1,0.410504]
[1762529577923,3.0273674,3303.2,3303.1,0.006]
[1762529578120,3.32998433,3303.4,3303.1,0.006]
[1762529578121,0.30271871,3303.4,3303.1,0.006]
[1762529578329,3.2078674,3303.2,3303.1,0.006]
[1762529578509,4.93649273,3303.2,3303.1,0.006]
[1762529578828,0.1805,3303.5,3303.1,0.006]
[1762529578997,0.0012,3303.7,3303.3,0.405504]
[1762529579397,3.48358473,3303.7,3303.1,0.006]
[1762529579722,3.0273674,3303.2,3303.1,0.006]
[1762529579925,3.68764621,3303.2,3303.1,0.006]
[1762529580297,3.6632674,3303.2,3303.1,0.006]
[1762529580496,3.0273674,3303.2,3303.1,0.006]
[1762529580943,0.0012,3303.7,3303.1,0.006]
[1762529581615,0.0012,3303.7,3303.3,0.405504]
[1762529582110,0.0012,3303.7,3303.5,0.405504]
[1762529582345,0.0012,3303.7,3303.6,0.405504]
[1762529582872,3.02810922,3303.7,3303.6,0.405504]
[1762529583008,3.63360129,3303.7,3303.6,0.405504]
[1762529583335,0.0012,3303.7,3303.6,0.405504]
[1762529584015,3.02810922,3303.7,3303.6,0.405504]
[1762529584544,3.0273674,3303.2,3303.1,0.006]
[1762529585048,0.0012,3303.7,3303.1,0.006]
[1762529585235,3.0273674,3303.2,3303.1,0.006]
[1762529585421,0.0012,3303.7,3303.1,0.006]
[1762529585822,0.65175464,3303.6,3303.1,0.006]
[1762529586035,0.0012,3303.7,3303.1,0.006]
[1762529586239,0.0012,3303.7,3303.4,0.405504]
[1762529586437,0.0012,3303.7,3303.1,0.006]
[1762529586639,3.0273674,3303.2,3303.1,0.006]
[1762529587160,1.747812,3303.7,3303.1,0.006]
[1762529587445,1.31627179,3303.6,3303.1,0.006]
[1762529587649,4.2870794,3303.2,3303.1,0.006]
[1762529587836,4.93898507,3303.2,3303.1,0.006]
[1762529588056,0.65190567,3303.2,3303.1,0.006]
[1762529588471,0.0012,3303.7,3303.1,0.006]
[1762529588472,3.02718411,3303.4,3303.1,0.006]
[1762529588630,3.0273674,3303.2,3303.1,0.006]
[1762529588828,0.65190567,3303.2,3303.1,0.006]
[1762529589034,0.65190567,3303.6,3303.1,0.006]
[1762529589342,4.4739794,3303.2,3303.1,0.006]
[1762529589529,5.87600993,3303.2,3303.1,0.006]
[1762529589724,6.36290993,3303.2,3303.1,0.006]
[1762529590182,5.68910993,3303.2,3303.1,0.006]
[1762529590377,0.65190567,3303.2,3303.1,0.006]
[1762529590538,0.0012,3303.7,3303.1,0.006]
[1762529590539,1.259712,3303.5,3303.1,0.006]
[1762529590746,0.65190567,3303.4,3303.1,0.006]
[1762529590981,0.65190567,3303.3,3303.1,0.006]
[1762529591183,1.260912,3303.7,3303.1,0.006]
[1762529591184,3.0273674,3303.2,3303.1,0.006]
[1762529591596,1.260912,3303.7,3303.1,0.006]
[1762529591774,0.65189126,3303.6,3303.2,0.405504]
[1762529592091,0.65189126,3303.5,3303.2,0.405504]
[1762529592400,0.65189126,3303.4,3303.1,0.006]
[1762529592538,0.65212361,3303.3,3303.1,0.006]
[1762529592735,0.0012,3303.7,3303.1,0.006]
[1762529592986,3.0273674,3303.2,3303.1,0.006]
[1762529593351,3.67972974,3303.2,3303.1,0.006]
[1762529593553,3.86662974,3303.2,3303.1,0.006]
[1762529593768,4.19100855,3303.2,3303.1,0.006]
[1762529593980,4.91283648,3303.2,3303.1,0.006]
[1762529594141,4.88845767,3303.2,3303.1,0.006]
[1762529594537,3.67972974,3303.2,3303.1,0.006]
[1762529594875,5.45072055,3303.2,3303.1,0.006]
[1762529595054,5.42634174,3303.2,3303.1,0.006]
[1762529595389,4.93944174,3303.2,3303.1,0.006]
[1762529595596,5.45072055,3303.2,3303.1,0.006]
[1762529595804,6.576868,3303.2,3303.1,0.006]
[1762529596167,6.089968,3303.2,3303.1,0.006]
[1762529596369,3.67972974,3303.2,3303.1,0.006]
[1762529596988,3.67972974,3303.2,3302.8,0.001]
[1762529597184,4.47425437,3302.9,3302.8,0.001]
[1762529597478,4.47425437,3302.9,3300.7,0.79083286]
[1762529597479,3.0292015,3301.2,3300.7,0.79083286]
[1762529597681,4.28755649,3301.2,3300.4,0.1531]
[1762529597903,3.68172607,3301.2,3300.4,0.1531]
[1762529598104,0.1869,3301.8,3300.9,3.02939681]
[1762529598426,1.63114654,3303.0,3301.1,7.59887258]
[1762529598604,0.65159001,3302.9,3302.4,0.405504]
[1762529598806,0.65156048,3303.1,3302.4,0.405504]
[1762529598971,3.02764237,3302.9,3302.6,0.405504]
[1762529599300,0.0012,3303.7,3302.6,0.405504]
[1762529599499,0.65156882,3303.6,3302.9,0.405504]
[1762529599776,3.02726523,3303.4,3302.8,3.43322508]
[1762529599920,0.65156882,3303.3,3302.8,0.405504]
[1762529600123,0.02437881,3303.4,3302.6,0.405504]
[1762529600282,3.02782571,3302.7,3302.6,0.405504]
[1762529600483,3.02792094,3302.6,3302.2,0.405504]
[1762529600828,0.02437881,3302.5,3301.3,0.1856]
[1762529601121,0.02437881,3302.5,3300.2,7.11777258]
[1762529601122,3.02912877,3301.3,3300.7,0.4761]
[1762529601420,3.02881904,3301.7,3301.2,0.1856]
[1762529601784,3.02803857,3301.6,3301.2,0.1856]
[1762529602116,0.4869,3302.5,3301.2,0.6617]
[1762529602117,3.02854472,3302.0,3301.2,0.6617]
[1762529602283,1.259712,3302.7,3301.5,3.02891055]
[1762529602480,0.1869,3303.0,3301.3,3.02910974]
[1762529602481,1.10430763,3302.6,3301.6,0.405504]
[1762529602720,1.933512,3303.0,3302.0,0.405504]
[1762529602721,0.65117948,3302.5,3302.0,0.405504]
[1762529602920,0.65117948,3302.5,3301.5,0.405504]
[1762529602921,0.02437881,3302.4,3301.8,0.405504]
[1762529603119,3.02773404,3302.8,3301.2,0.1856]
[1762529603120,0.65117948,3302.7,3301.2,0.1856]
[1762529603322,0.65117948,3302.6,3301.6,0.405504]
[1762529603626,0.1869,3303.2,3301.8,0.405504]
[1762529603627,0.65117948,3302.8,3301.8,0.405504]
[1762529603835,0.67555829,3303.1,3302.1,0.405504]
[1762529603983,3.02799353,3302.6,3302.1,0.405504]
[1762529604185,3.02790868,3302.7,3302.0,3.43397006]
[1762529604394,1.259712,3303.1,3302.0,0.405504]
[1762529604607,0.67536742,3303.0,3302.3,0.405504]
[1762529605124,0.4869,3302.9,3301.2,0.1856]
[1762529605341,0.65094603,3303.0,3301.6,3.0288345]
[1762529605541,3.67867276,3302.9,3302.0,0.405504]
[1762529605692,3.02806531,3302.5,3302.0,0.405504]
[1762529605887,0.6055891,3302.5,3301.9,0.405504]
[1762529606104,1.259712,3303.0,3301.5,0.4761]
[1762529606105,0.65120318,3302.9,3301.5,0.4761]
[1762529606305,3.02816876,3302.4,3301.6,0.405504]
[1762529606504,3.02825399,3302.3,3301.6,3.02877346]
[1762529606728,3.02770474,3302.9,3301.6,3.02877346]
[1762529606729,0.4869,3303.0,3301.6,0.4761]
[1762529606940,0.65127259,3302.9,3301.1,0.005]
[1762529607142,0.65127259,3302.8,3302.1,0.405504]
[1762529607304,0.005,3303.9,3302.6,3.43340814]
[1762529607305,0.1512,3303.1,3302.6,3.43340814]
[1762529607622,0.1512,3303.5,3303.1,0.405504]
[1762529607807,0.1512,3303.5,3303.1,3.43295874]
[1762529608008,0.0012,3303.7,3303.6,3.43250484]
[1762529608556,0.0012,3303.7,3303.6,0.405504]
[1762529609060,3.02700084,3303.6,3302.2,0.153]
[1762529609365,2.35141533,3303.5,3301.5,0.4761]
[1762529609502,2.35141533,3303.5,3300.9,6.64188405]
[1762529609503,3.0280823,3302.5,3301.0,3.02930254]
[1762529609702,0.45344809,3303.0,3301.2,0.6617]
[1762529609926,3.02854096,3302.0,3301.2,1.921412]
[1762529610202,1.259712,3303.1,3301.3,0.4761]
[1762529610402,3.02834687,3302.2,3301.3,0.4761]
[1762529610654,1.746612,3303.2,3301.3,0.4761]
[1762529610859,1.1379864,3303.1,3301.5,1.259712]
[1762529611002,0.41658412,3303.5,3301.3,0.4761]
[1762529611003,3.02771318,3302.9,3302.3,0.405504]
[1762529611206,3.02810077,3302.4,3302.3,0.405504]
[1762529611441,3.02794185,3302.6,3301.6,0.405504]
[1762529611744,3.02793502,3302.6,3302.0,0.405504]
[1762529611930,0.30277132,3302.9,3302.3,0.405504]
[1762529612128,3.02817232,3303.7,3302.6,0.405504]
[1762529612129,0.0012,3303.7,3302.6,0.405504]
[1762529612316,3.02743306,3303.2,3302.6,0.405504]
[1762529612839,3.02701033,3303.6,3302.6,3.43339366]
[1762529613025,3.02764467,3302.9,3302.2,1.259712]
[1762529613227,3.51394567,3303.6,3302.3,0.405504]
[1762529613446,3.02861942,3301.9,3301.2,0.1856]
[1762529613618,3.02858996,3301.9,3301.2,3.21474901]
[1762529613944,3.02868239,3301.8,3301.6,0.001]
[1762529614109,3.0286613,3301.8,3301.6,0.001]
[1762529614442,0.1869,3302.3,3301.6,0.001]
[1762529614605,0.02437881,3302.0,3301.6,0.001]
[1762529614805,0.1869,3302.3,3301.6,0.001]
[1762529615031,0.65154512,3302.5,3301.6,0.001]
[1762529615238,7.28392326,3304.5,3301.6,0.001]
[1762529615239,0.65154512,3303.0,3301.7,0.405504]
[1762529615438,1.259712,3303.0,3302.0,0.405504]
[1762529615626,0.42872422,3302.9,3302.4,0.405504]
[1762529615830,0.65147449,3303.2,3302.4,0.405504]
[1762529616032,1.10457449,3303.4,3302.4,0.405504]
[1762529616234,1.10457449,3303.4,3299.1,0.10499999]
[1762529616235,3.02760858,3303.0,3302.6,0.405504]
[1762529616409,3.02781941,3302.8,3302.6,0.405504]
[1762529616745,3.02773777,3302.8,3302.6,0.405504]
[1762529616932,3.02803915,3302.5,3301.8,3.02857946]
[1762529617141,3.0282565,3302.3,3301.6,3.435325]
[1762529617310,0.75587378,3302.8,3301.8,0.405504]
[1762529617311,0.30277378,3302.8,3301.8,0.405504]
[1762529617511,3.02777106,3302.8,3302.1,3.43381302]
[1762529617845,3.02777106,3302.8,3301.9,3.02855598]
[1762529617846,3.02844489,3302.1,3301.6,0.001]
[1762529618151,0.47747881,3302.7,3301.6,0.001]
[1762529618152,0.1512,3302.0,3301.6,0.001]
[1762529618320,3.02874276,3301.7,3301.6,0.001]
[1762529618534,0.67617628,3302.2,3301.6,0.001]
[1762529618535,3.02828417,3302.2,3301.6,0.001]
[1762529618861,3.02828417,3302.2,3300.4,0.1531]
[1762529618862,3.02910974,3301.3,3301.1,1e-08]
[1762529619073,3.03011938,3300.2,3299.2,0.15792903]
[1762529619275,4.48713138,3300.2,3299.2,0.15792903]
[1762529619480,3.03094595,3299.3,3299.2,0.15792903]
[1762529619770,3.03094595,3299.3,3297.5,0.1856]
[1762529619771,1.259712,3299.1,3297.5,0.1856]
[1762529619979,3.0315272,3298.7,3297.8,0.4915]
[1762529620138,0.4531,3300.1,3298.2,1.904212]
[1762529620335,0.4531,3300.1,3298.3,0.4915]
[1762529620579,1.63036459,3300.6,3298.3,0.4915]
[1762529620580,0.64994601,3300.5,3298.9,3.03124202]
[1762529620743,3.03022325,3300.1,3299.0,0.82493641]
[1762529620923,3.0306009,3299.7,3299.1,0.405504]
[1762529621285,3.02945797,3301.0,3299.1,0.405504]
[1762529621286,0.4531,3301.2,3299.2,0.405504]
[1762529621424,3.03065898,3299.7,3298.5,0.4915]
[1762529621773,1.457012,3300.6,3298.6,0.405504]
[1762529621774,1.259712,3300.2,3298.6,0.405504]
[1762529621971,0.47747881,3300.5,3299.3,0.405504]
[1762529622172,0.1973,3300.6,3299.1,0.405504]
[1762529622411,3.03014015,3300.2,3299.3,0.405504]
[1762529622523,0.30301401,3300.1,3299.6,0.405504]
[1762529622727,3.03031493,3300.0,3299.6,0.405504]
[1762529622923,0.4531,3300.5,3299.0,0.405504]
[1762529623125,0.005,3300.9,3299.2,1.259712]
[1762529623377,0.005,3300.9,3299.5,0.405504]
[1762529623678,3.0297652,3300.6,3299.9,0.405504]
[1762529623825,0.4581,3300.9,3300.1,0.405504]
[1762529623826,3.02974323,3300.7,3300.1,0.405504]
[1762529624025,3.03455578,3300.9,3300.1,3.03012633]
[1762529624279,3.02966037,3300.7,3300.0,0.405504]
[1762529624478,3.02966037,3300.7,3300.0,3.43573195]
[1762529624767,3.02994577,3300.4,3299.7,3.4360572]
[1762529624979,3.02994577,3300.4,3299.0,4.78237025]
[1762529624980,3.03001178,3300.4,3299.2,0.405504]
[1762529625172,0.005,3300.9,3300.3,0.405504]
[1762529625372,0.50487881,3300.8,3298.8,0.4644]
[1762529625571,1.741012,3300.8,3299.0,0.869904]
[1762529625771,1.741012,3300.8,3299.5,0.405504]
[1762529625772,3.03018524,3300.2,3299.5,0.405504]
[1762529625945,0.47755296,3300.7,3299.5,0.405504]
[1762529626141,1.741012,3300.8,3299.1,3.49552927]
[1762529626371,3.03452196,3300.9,3299.1,3.49552927]
[1762529626372,0.005,3300.9,3299.3,0.405504]
[1762529626567,0.005,3300.9,3299.7,0.405504]
[1762529626568,0.50487881,3300.8,3299.7,0.405504]
[1762529626790,0.50487881,3300.8,3299.3,0.405504]
[1762529626791,3.03042303,3299.9,3299.3,0.405504]
[1762529626985,3.03058749,3299.7,3299.1,3.43662395]
[1762529627188,3.03038644,3300.0,3299.2,3.03103782]
[1762529627497,3.03057675,3299.8,3299.3,0.405504]
[1762529627709,0.02357881,3300.3,3298.3,0.4644]
[1762529627854,1.259712,3300.5,3298.3,0.4644]
[1762529627855,0.192,3299.7,3298.3,0.4644]
[1762529628055,3.03121166,3299.1,3298.1,0.005]
[1762529628354,3.03148441,3298.8,3298.1,0.005]
[1762529628550,3.03076223,3299.5,3298.1,0.005]
[1762529628800,0.1512,3298.5,3298.1,0.005]
[1762529629011,0.02357881,3299.1,3298.1,0.005]
[1762529629302,3.22355808,3298.7,3298.1,0.005]
[1762529629455,3.03195682,3298.2,3298.1,0.005]
[1762529629657,0.4813,3299.1,3298.1,0.005]
[1762529629885,0.192,3299.2,3298.1,0.005]
[1762529630085,0.50487881,3299.1,3298.1,0.005]
[1762529630358,0.02357881,3299.1,3298.4,0.405504]
[1762529630664,0.02357881,3299.0,3298.3,0.405504]
[1762529630866,1.259712,3299.6,3298.3,0.405504]
[1762529631054,3.03154478,3298.7,3298.1,0.410504]
[1762529631280,3.03129984,3299.0,3298.3,0.405504]
[1762529631480,3.2226238,3299.7,3298.4,3.03176945]
[1762529631802,0.4813,3300.0,3299.0,0.405504]
[1762529632111,0.02357881,3299.9,3298.1,0.4694]
[1762529632411,0.4813,3300.0,3298.7,0.405504]
[1762529632412,3.51164946,3300.0,3298.7,0.405504]
[1762529632602,3.03103717,3299.3,3298.7,0.405504]
[1762529632803,3.03088357,3299.4,3298.8,0.405504]
[1762529632985,0.97763615,3299.9,3298.9,0.405504]
[1762529633181,3.03122158,3299.0,3298.9,0.405504]
[1762529633421,3.03076354,3299.5,3298.1,0.006]
[1762529633722,0.4813,3299.8,3298.5,0.405504]
[1762529633723,0.4813,3299.7,3298.5,0.405504]
[1762529633878,3.03111587,3299.2,3298.4,0.405504]
[1762529634078,0.4813,3299.7,3298.4,0.405504]
[1762529634318,3.03129296,3299.0,3298.4,0.405504]
[1762529634620,0.35118447,3299.6,3298.1,0.4704]
[1762529634621,3.0316546,3298.6,3298.1,0.006]
[1762529634942,3.03112776,3299.2,3298.5,0.405504]
[1762529635121,3.03109324,3299.2,3298.5,3.43716031]
[1762529635284,3.0310729,3299.2,3298.5,3.43716031]
[1762529635484,3.03115075,3299.1,3298.5,0.405504]
[1762529635697,0.606196,3299.2,3298.5,0.405504]
[1762529635984,3.03127891,3299.0,3298.5,0.405504]
[1762529636186,0.4813,3299.4,3298.2,0.405504]
[1762529636550,3.03160389,3298.6,3298.4,0.405504]
[1762529636682,3.03169499,3298.5,3298.1,0.006]
[1762529636884,1.259712,3299.1,3298.1,0.006]
[1762529636885,3.03195682,3298.2,3298.1,0.006]
[1762529637096,4.90040796,3298.2,3298.1,0.006]
[1762529637609,5.40528677,3298.2,3298.1,1e-08]
[1762529637764,5.38170796,3298.2,3298.1,1e-08]
[1762529637974,1.259712,3298.2,3298.1,1e-08]
[1762529638117,3.03155287,3298.7,3298.1,1e-08]
[1762529638316,3.03189638,3298.3,3298.1,1e-08]
[1762529638517,3.03195682,3298.2,3298.1,1e-08]
[1762529639140,0.192,3298.8,3298.1,1e-08]
[1762529639357,0.02357881,3298.7,3298.1,1e-08]
[1762529639654,0.1512,3298.4,3298.1,1e-08]
[1762529639866,0.1512,3298.6,3298.2,3.43744447]
[1762529640163,0.1512,3299.0,3298.6,0.405504]
[1762529640317,0.1512,3298.6,3298.1,1e-08]
[1762529640516,0.1512,3298.2,3298.1,1e-08]
[1762529640717,0.4813,3299.8,3298.2,0.405504]
[1762529641125,0.4813,3299.8,3298.1,1e-08]
[1762529641341,1.259712,3299.5,3298.3,0.405504]
[1762529641539,3.03076673,3299.5,3298.7,3.03142802]
[1762529641766,0.35167624,3299.7,3298.8,0.405504]
[1762529642077,0.005,3299.9,3298.7,0.405504]
[1762529642272,0.02357881,3299.8,3298.4,0.4644]
[1762529642472,0.005,3299.9,3298.7,0.405504]
[1762529642634,0.005,3299.9,3299.8,0.561604]
[1762529642835,0.005,3299.9,3298.9,0.154]
[1762529643165,3.03054434,3299.8,3299.0,0.405504]
[1762529643364,0.197,3299.9,3299.0,0.405504]
[1762529643567,3.03112081,3299.2,3299.0,0.405504]
[1762529643871,3.03070047,3299.6,3299.0,0.154]
[1762529644073,0.197,3299.9,3298.8,0.405504]
[1762529644258,3.05425244,3299.6,3298.1,3.49644538]
[1762529644430,0.197,3299.9,3298.3,0.405504]
[1762529644635,1.259712,3299.4,3298.8,0.405504]
[1762529644844,3.03100553,3299.3,3298.8,0.405504]
[1762529645093,3.03118608,3299.1,3298.5,0.405504]
[1762529645272,0.6783,3299.9,3298.5,0.405504]
[1762529645450,0.005,3299.9,3299.4,0.405504]
[1762529645766,1.259712,3299.8,3299.3,0.405504]
[1762529645971,1.259712,3299.6,3299.3,0.405504]
[1762529646130,3.03121345,3299.1,3297.8,0.1561]
[1762529646337,0.451,3299.5,3297.8,0.1561]
[1762529646546,1.259712,3299.3,3297.8,0.1561]
[1762529646768,0.02357881,3299.2,3297.8,0.1561]
[1762529646971,3.03156621,3298.7,3297.9,0.405504]
[1762529647143,0.2970424,3299.3,3297.9,0.4866]
[1762529647343,3.03077695,3298.7,3298.0,3.03211486]
[1762529647544,0.451,3299.3,3297.9,0.4866]
[1762529647835,4.94145726,3299.2,3298.3,3.0318649]
[1762529648050,0.65069716,3299.1,3298.4,0.405504]
[1762529648248,0.65069716,3299.0,3298.6,0.405504]
[1762529648462,1.259712,3299.2,3298.7,3.03142923]
[1762529648734,0.65178294,3299.1,3298.8,0.04827615]
[1762529648938,0.65178294,3299.0,3298.9,0.405504]
[1762529649453,3.03091551,3299.4,3298.8,0.405504]
[1762529649653,0.6518327,3299.3,3298.6,3.43705624]
[1762529649854,0.2011,3299.9,3298.9,0.405504]
[1762529650183,0.65179717,3299.8,3299.0,0.154]
[1762529650370,0.65179717,3299.7,3299.0,0.6406]
[1762529650556,0.2011,3299.9,3299.3,0.405504]
[1762529650757,0.1512,3299.7,3299.2,0.405504]
[1762529650969,0.65174956,3299.6,3299.2,0.405504]
[1762529651175,0.65174956,3299.5,3299.2,0.405504]
[1762529651348,0.1512,3299.7,3299.2,0.405504]
[1762529651547,0.67543869,3299.6,3299.2,0.405504]
[1762529651890,0.80305988,3299.5,3299.2,0.405504]
[1762529652048,0.1512,3299.5,3299.4,0.405504]
[1762529652242,0.005,3299.9,3299.4,0.556704]
[1762529652478,0.67537674,3299.8,3298.7,0.154]
[1762529652646,3.03102623,3299.3,3298.8,0.556704]
[1762529652846,0.65188352,3299.2,3298.8,0.405504]
[1762529653085,0.1512,3299.5,3299.0,0.405504]
[1762529653579,1.259712,3299.7,3299.2,3.03101929]
[1762529653882,0.005,3299.9,3299.5,0.405504]
[1762529654056,0.65195607,3299.8,3299.5,0.405504]
[1762529654248,0.65195607,3299.7,3299.3,3.43641632]
[1762529654445,0.2011,3299.9,3299.3,0.405504]
[1762529654645,0.65228258,3299.8,3299.1,0.405504]
[1762529654849,3.03081666,3299.5,3299.1,0.405504]
[1762529655044,3.03081666,3299.5,3299.0,0.405504]
[1762529655045,3.68314095,3299.4,3299.0,0.405504]
[1762529655352,0.67627523,3299.3,3298.5,0.001]
[1762529655546,0.65269642,3299.2,3298.8,3.03135992]
[1762529655762,1.259712,3299.8,3299.2,0.405504]
[1762529655763,3.03049327,3299.8,3299.2,0.405504]